bitfinex/quotes_SOLUSD_20251202
["timestamp","ask_amount","ask_price","bid_price","bid_amount"]
[1764698717388,19.56292633,139.51,139.5,0.72]
[1764698717688,19.56292633,139.51,139.48,17.028864]
[1764698717987,12.39498138,139.49,139.48,17.028864]
[1764698718284,12.39498138,139.5,139.49,0.72]
[1764698718494,7.29175087,139.52,139.49,0.72]
[1764698718884,7.16694072,139.53,139.49,0.72]
[1764698719060,7.29175087,139.51,139.49,0.72]
[1764698720082,7.29175087,139.5,139.49,0.72]
[1764698720985,14.46020965,139.5,139.47,8.68]
[1764698721185,7.29175087,139.49,139.48,0.72]
[1764698721577,7.29175087,139.49,139.46,17.028864]
[1764698721776,7.29175087,139.49,139.47,0.72]
[1764698722677,7.16845878,139.5,139.47,0.72]
[1764698722871,17.91657495,139.54,139.47,0.72]
[1764698723067,7.29175087,139.5,139.47,0.72]
[1764698724176,7.1669175,139.53,139.47,0.72]
[1764698724177,7.29175087,139.51,139.47,0.72]
[1764698724797,7.29175087,139.5,139.47,0.72]
[1764698726189,7.29175087,139.51,139.47,0.72]
[1764698726495,7.16640389,139.54,139.47,7.88963367]
[1764698726678,7.29175087,139.52,139.47,7.88963367]
[1764698726879,7.29175087,139.53,139.48,0.72]
[1764698727080,7.29175087,139.53,139.49,7.96]
[1764698727492,21.52157537,139.61,139.51,16.10169579]
[1764698727493,7.16332378,139.6,139.51,16.10169579]
[1764698727696,7.29175087,139.57,139.52,7.96]
[1764698727887,7.29175087,139.57,139.52,8.68]
[1764698728082,7.29175087,139.56,139.53,0.72]
[1764698728692,7.29175087,139.58,139.53,7.88645531]
[1764698728993,7.29175087,139.56,139.53,0.72]
[1764698729180,7.29175087,139.56,139.54,0.72]
[1764698729381,7.29175087,139.55,139.54,0.72]
[1764698730702,7.29175087,139.56,139.54,0.72]
[1764698732001,14.45758814,139.56,139.54,0.72]
[1764698732489,10.27502051,139.56,139.54,0.72]
[1764698733007,10.27502051,139.56,139.52,24.268864]
[1764698733008,3.10918324,139.55,139.52,17.028864]
[1764698733175,3.10918324,139.55,139.53,0.72]
[1764698734382,3.10918324,139.54,139.53,0.72]
[1764698734791,3.10918324,139.55,139.53,0.72]
[1764698737005,3.10918324,139.54,139.53,0.72]
[1764698737300,3.10918324,139.55,139.53,0.72]
[1764698739008,10.27502051,139.56,139.53,0.72]
[1764698739705,17.90876236,139.6,139.53,0.72]
[1764698740010,3.10918324,139.58,139.53,0.72]
[1764698740313,104.5,139.62,139.54,7.96]
[1764698740601,3.10918324,139.57,139.53,0.72]
[1764698740906,3.10918324,139.55,139.53,8.68]
[1764698741305,3.10918324,139.57,139.54,0.69]
[1764698741680,7.96,139.6,139.54,0.69]
[1764698741881,3.10918324,139.59,139.54,0.69]
[1764698742283,7.1635369,139.6,139.54,10.96527992]
[1764698742478,10.27216324,139.61,139.55,0.71]
[1764698742707,10.27160664,139.62,139.56,7.96]
[1764698743096,10.27160664,139.62,139.57,0.71]
[1764698743296,7.16238169,139.62,139.57,0.71]
[1764698743495,3.10918324,139.64,139.58,11.91912816]
[1764698743700,3.10918324,139.64,139.59,7.96]
[1764698743900,7.15973365,139.67,139.59,8.67]
[1764698744097,3.10918324,139.61,139.59,8.67]
[1764698744488,3.10918324,139.61,139.6,0.71]
[1764698744688,3.10918324,139.62,139.6,0.71]
[1764698746117,20.39673296,139.68,139.62,16.308864]
[1764698746118,15.11938979,139.68,139.62,16.308864]
[1764698746298,3.10918324,139.66,139.62,31.43116092]
[1764698746497,7.27632016,139.68,139.63,0.71]
[1764698747216,7.27632016,139.66,139.63,0.71]
[1764698747423,7.27632016,139.65,139.63,17.018864]
[1764698747720,7.27632016,139.64,139.63,16.308864]
[1764698748915,14.437592,139.64,139.59,8.67]
[1764698749120,7.16127184,139.64,139.6,0.71]
[1764698749327,7.27632016,139.62,139.6,0.71]
[1764698749715,7.27632016,139.63,139.6,0.71]
[1764698749920,25.86002197,139.67,139.6,0.71]
[1764698750119,7.27632016,139.63,139.6,0.71]
[1764698750331,25.86002197,139.67,139.6,0.71]
[1764698750520,7.27632016,139.63,139.6,7.87304735]
[1764698750912,7.27632016,139.63,139.61,0.71]
[1764698751113,7.27632016,139.62,139.61,0.71]
[1764698751322,7.27632016,139.62,139.59,7.16374419]
[1764698751521,7.27632016,139.62,139.6,0.71]
[1764698751830,7.27632016,139.63,139.6,0.71]
[1764698752022,7.27632016,139.62,139.6,0.71]
[1764698753824,7.27632016,139.63,139.6,7.87324462]
[1764698754295,7.27632016,139.63,139.61,0.71]
[1764698754731,7.27632016,139.62,139.61,0.71]
[1764698755337,7.27632016,139.62,139.58,24.18299761]
[1764698755509,7.27632016,139.61,139.6,16.308864]
[1764698756030,7.27632016,139.62,139.6,16.308864]
[1764698756232,7.27632016,139.62,139.6,17.018864]
[1764698756626,17.90258324,139.65,139.6,17.018864]
[1764698756831,7.27632016,139.62,139.6,17.018864]
[1764698757138,7.27632016,139.61,139.6,17.018864]
[1764698758722,17.90258324,139.65,139.6,17.018864]
[1764698758928,7.27632016,139.61,139.6,17.018864]
[1764698759731,7.27632016,139.61,139.6,0.71]
[1764698759914,7.27632016,139.61,139.6,17.018864]
[1764698760110,7.27632016,139.62,139.6,17.018864]
[1764698760350,7.96,139.67,139.61,0.71]
[1764698760526,7.27632016,139.64,139.61,0.71]
[1764698760731,7.16038507,139.66,139.61,0.71]
[1764698760908,7.27632016,139.64,139.61,0.71]
[1764698761329,7.16038507,139.66,139.61,0.71]
[1764698761629,7.27632016,139.65,139.61,0.71]
[1764698762005,7.27632016,139.64,139.61,0.71]
[1764698762205,7.27632016,139.64,139.61,7.87269335]
[1764698762415,7.27632016,139.64,139.62,0.71]
[1764698762632,7.96,139.67,139.62,0.71]
[1764698762926,17.89496172,139.71,139.64,16.308864]
[1764698763122,7.27632016,139.68,139.64,24.268864]
[1764698763325,7.27632016,139.68,139.65,0.71]
[1764698764218,15.11717148,139.72,139.66,7.27632016]
[1764698764219,7.96,139.72,139.66,7.27632016]
[1764698764421,7.96,139.72,139.67,15.94632016]
[1764698764422,7.27632016,139.72,139.67,15.94632016]
[1764698764827,7.27632016,139.72,139.68,0.71]
[1764698765133,7.27632016,139.73,139.68,0.71]
[1764698765307,7.27632016,139.73,139.68,7.98632016]
[1764698765625,7.27632016,139.73,139.68,17.018864]
[1764698765824,7.27632016,139.73,139.69,0.71]
[1764698766219,15.43632016,139.75,139.7,7.15819613]
[1764698766417,3.10084437,139.73,139.69,7.86850429]
[1764698766620,3.10084437,139.73,139.7,0.71]
[1764698766817,3.30084437,139.75,139.7,8.67]
[1764698767022,0.2,139.75,139.73,16.308864]
[1764698767420,3.30084437,139.75,139.74,0.71]
[1764698767637,3.30084437,139.75,139.72,17.018864]
[1764698768134,0.2,139.75,139.73,0.71]
[1764698768514,3.30084437,139.75,139.73,0.71]
[1764698768932,0.2,139.75,139.73,7.86643746]
[1764698769138,0.2,139.75,139.74,16.308864]
[1764698769436,0.2,139.75,139.74,17.018864]
[1764698770512,0.2,139.75,139.74,24.17501113]
[1764698771136,0.2,139.76,139.74,24.17501113]
[1764698771342,3.30084437,139.76,139.74,24.17501113]
[1764698771725,3.30084437,139.76,139.74,17.018864]
[1764698773027,0.2,139.76,139.74,23.46499412]
[1764698773234,0.2,139.76,139.74,24.11499412]
[1764698777147,0.2,139.76,139.75,0.65]
[1764698777325,3.30084437,139.76,139.73,0.65]
[1764698778058,0.2,139.76,139.73,0.65]
[1764698778534,0.2,139.76,139.74,7.15614713]
[1764698778738,0.2,139.76,139.75,19.40970837]
[1764698778959,0.2,139.76,139.75,16.958864]
[1764698780758,0.2,139.76,139.75,24.11449906]
[1764698780942,0.2,139.76,139.75,16.308864]
[1764698781255,0.2,139.76,139.71,17.89365211]
[1764698781256,12.39731589,139.76,139.71,0.65]
[1764698781446,4.8420317,139.74,139.72,0.65]
[1764698781643,4.8420317,139.74,139.7,16.958864]
[1764698781828,4.8420317,139.74,139.71,0.65]
[1764698782442,12.37261823,139.74,139.71,0.65]
[1764698782639,7.55528419,139.76,139.71,0.65]
[1764698782640,12.37261823,139.75,139.71,0.65]
[1764698782840,12.37261823,139.75,139.71,7.80724051]
[1764698783040,12.37261823,139.75,139.72,0.65]
[1764698783361,12.37261823,139.74,139.72,16.958864]
[1764698783544,12.37261823,139.75,139.72,0.65]
[1764698783859,12.37261823,139.75,139.72,16.958864]
[1764698785158,19.52827955,139.75,139.72,16.958864]
[1764698785465,19.72796394,139.76,139.72,23.46593473]
[1764698785766,12.57261823,139.76,139.72,24.11593473]
[1764698786238,0.2,139.76,139.73,0.65]
[1764698786558,12.57261823,139.76,139.73,0.65]
[1764698786942,12.57261823,139.76,139.73,7.80652586]
[1764698787142,0.2,139.76,139.73,7.80652586]
[1764698787341,12.57261823,139.76,139.73,7.15652586]
[1764698787656,12.37261823,139.75,139.74,0.65]
[1764698787967,12.37261823,139.75,139.72,0.65]
[1764698788261,12.37261823,139.73,139.7,0.65]
[1764698788432,12.37261823,139.72,139.7,0.65]
[1764698788633,12.37261823,139.71,139.68,0.65]
[1764698788833,12.37261823,139.7,139.68,7.80922107]
[1764698789060,12.37261823,139.7,139.68,0.65]
[1764698789269,12.37261823,139.69,139.66,0.65]
[1764698789456,12.37261823,139.68,139.67,16.308864]
[1764698789657,12.37261823,139.68,139.67,16.958864]
[1764698790139,12.37261823,139.69,139.67,16.958864]
[1764698790568,12.37261823,139.69,139.67,0.65]
[1764698790736,12.37261823,139.68,139.65,7.81064844]
[1764698790938,12.37261823,139.68,139.6,35.81611884]
[1764698790939,12.37261823,139.66,139.63,7.16156619]
[1764698791256,12.37261823,139.66,139.62,26.7150619]
[1764698791257,12.37261823,139.68,139.64,0.65]
[1764698791474,12.37261823,139.68,139.65,16.308864]
[1764698791763,20.31261823,139.7,139.67,16.308864]
[1764698792084,12.37261823,139.7,139.67,16.308864]
[1764698792243,12.37261823,139.71,139.68,7.8092067]
[1764698792441,12.37261823,139.7,139.68,0.65]
[1764698793270,12.37261823,139.7,139.67,23.46837096]
[1764698793447,12.37261823,139.7,139.67,24.18837096]
[1764698793644,0.4,139.76,139.68,17.46994492]
[1764698793975,12.37261823,139.69,139.68,0.72]
[1764698794271,12.37261823,139.69,139.67,0.72]
[1764698794470,12.37261823,139.71,139.67,0.72]
[1764698794776,12.37261823,139.74,139.68,21.18256315]
[1764698794976,31.80415471,139.76,139.71,16.308864]
[1764698794977,12.57261823,139.76,139.71,16.308864]
[1764698795146,12.37261823,139.75,139.71,24.248864]
[1764698795345,12.37261823,139.75,139.72,0.72]
[1764698796077,12.37261823,139.75,139.72,7.87705788]
[1764698796456,12.37261823,139.75,139.73,0.72]
[1764698797842,12.37261823,139.75,139.73,7.87660927]
[1764698798046,0.2,139.76,139.73,7.87660927]
[1764698798260,0.2,139.76,139.74,0.72]
[1764698799958,12.57261823,139.76,139.73,7.15647537]
[1764698800259,12.37261823,139.75,139.73,0.72]
[1764698800458,12.57261823,139.76,139.74,0.72]
[1764698801959,19.72778219,139.76,139.71,8.80994492]
[1764698802162,19.72778219,139.76,139.72,0.67]
[1764698802361,12.19926524,139.76,139.72,0.67]
[1764698802874,5.04410128,139.76,139.72,0.67]
[1764698803982,5.04410128,139.76,139.73,7.15665927]
[1764698804456,0.2,139.76,139.74,0.67]
[1764698805880,0.2,139.76,139.74,7.82585664]
[1764698806085,0.2,139.76,139.75,0.67]
[1764698808157,0.2,139.76,139.75,16.978864]
[1764698808362,5.04410128,139.76,139.73,15.09644693]
[1764698808557,4.84410128,139.75,139.72,24.248864]
[1764698808761,4.84410128,139.75,139.72,24.918864]
[1764698808982,4.84410128,139.75,139.73,16.308864]
[1764698809388,4.84410128,139.75,139.73,16.978864]
[1764698810963,4.84410128,139.74,139.72,7.15712892]
[1764698811289,4.84410128,139.74,139.71,7.15725844]
[1764698811487,4.84410128,139.74,139.71,7.82725844]
[1764698811892,4.84410128,139.74,139.72,0.67]
[1764698812583,4.84410128,139.74,139.72,7.8271094]
[1764698813169,4.84410128,139.75,139.72,7.1571094]
[1764698813368,4.84410128,139.75,139.72,7.8271094]
[1764698813984,4.84410128,139.75,139.73,0.67]
[1764698814183,4.84410128,139.75,139.72,7.1571094]
[1764698814400,4.84410128,139.75,139.72,7.8271094]
[1764698814693,4.84410128,139.75,139.71,7.15768377]
[1764698814880,4.84410128,139.75,139.72,0.67]
[1764698816804,4.84410128,139.75,139.72,7.8270155]
[1764698817311,4.84410128,139.75,139.73,0.67]
[1764698819295,4.84410128,139.75,139.72,7.1570155]
[1764698819594,4.84410128,139.75,139.72,0.67]
[1764698819595,4.84410128,139.74,139.72,0.67]
[1764698820588,5.04410128,139.76,139.72,7.82710658]
[1764698820793,0.2,139.76,139.72,20.61120786]
[1764698821108,0.2,139.76,139.73,5.51410128]
[1764698821403,0.2,139.76,139.75,16.308864]
[1764698821897,0.2,139.76,139.75,16.978864]
[1764698822680,0.2,139.76,139.75,24.13449906]
[1764698825802,0.2,139.79,139.75,99.39580822]
[1764698825988,0.2,139.79,139.78,8.80994492]
[1764698826392,0.2,139.79,139.78,9.47994492]
[1764698826818,0.2,139.79,139.78,24.57404421]
[1764698826983,0.2,139.79,139.78,29.41814549]
[1764698827189,0.2,139.79,139.78,24.57404421]
[1764698827495,0.2,139.79,139.78,0.67]
[1764698827692,0.2,139.79,139.78,16.978864]
[1764698828817,5.04410128,139.79,139.75,16.978864]
[1764698828999,4.84410128,139.78,139.76,0.67]
[1764698829509,4.84410128,139.78,139.75,23.4643012]
[1764698829700,4.84410128,139.78,139.75,24.1343012]
[1764698830200,4.84410128,139.77,139.75,24.1343012]
[1764698830815,4.84410128,139.78,139.75,24.1343012]
[1764698832010,4.84410128,139.77,139.75,24.1343012]
[1764698832421,4.84410128,139.78,139.75,24.1343012]
[1764698833513,4.84410128,139.76,139.75,16.308864]
[1764698834008,4.84410128,139.77,139.75,17.008864]
[1764698835718,7.15417672,139.78,139.75,17.008864]
[1764698835901,4.84410128,139.77,139.75,17.008864]
[1764698836213,4.84410128,139.77,139.75,24.16447927]
[1764698838510,4.84410128,139.77,139.75,17.008864]
[1764698839136,9.88820256,139.76,139.7,0.7]
[1764698839341,4.84410128,139.71,139.68,0.7]
[1764698839639,4.84410128,139.69,139.65,0.7]
[1764698839941,4.84410128,139.67,139.65,0.7]
[1764698840233,4.84410128,139.67,139.66,16.308864]
[1764698840442,3.10398031,139.68,139.66,16.308864]
[1764698840737,3.10398031,139.68,139.66,17.008864]
[1764698841619,3.10398031,139.68,139.66,24.16902024]
[1764698842025,0.2,139.72,139.67,0.7]
[1764698842330,3.10398031,139.68,139.67,0.7]
[1764698842714,3.10398031,139.69,139.67,7.85973365]
[1764698842914,3.10398031,139.7,139.67,7.85973365]
[1764698843217,3.10398031,139.71,139.68,0.7]
[1764698843418,17.88971509,139.75,139.68,0.7]
[1764698843419,7.15595983,139.75,139.68,0.7]
[1764698843630,3.10398031,139.73,139.68,0.7]
[1764698843832,3.10398031,139.72,139.68,0.7]
[1764698844028,3.10398031,139.73,139.68,0.7]
[1764698844231,3.10398031,139.72,139.68,0.7]
[1764698844409,0.2,139.75,139.68,0.7]
[1764698844410,3.10398031,139.71,139.68,0.7]
[1764698844916,3.10398031,139.71,139.69,7.15870856]
[1764698845124,3.10398031,139.71,139.68,17.008864]
[1764698845326,3.10398031,139.71,139.68,0.7]
[1764698845513,3.10398031,139.71,139.69,0.7]
[1764698845720,3.10398031,139.7,139.69,17.008864]
[1764698846160,3.10398031,139.71,139.69,17.008864]
[1764698846313,7.27146785,139.71,139.69,17.008864]
[1764698846752,7.27146785,139.7,139.69,16.308864]
[1764698847232,7.27146785,139.7,139.68,0.7]
[1764698847645,7.15753096,139.72,139.68,0.7]
[1764698847946,7.27146785,139.7,139.68,0.7]
[1764698848122,7.27146785,139.69,139.65,0.7]
[1764698848319,7.27146785,139.67,139.65,0.7]
[1764698848753,7.27146785,139.66,139.64,0.7]
[1764698848919,7.27146785,139.66,139.65,16.308864]
[1764698849115,7.27146785,139.66,139.64,0.7]
[1764698849640,7.27146785,139.69,139.64,7.86117319]
[1764698850021,7.27146785,139.68,139.65,0.7]
[1764698850417,7.27146785,139.67,139.65,0.7]
[1764698850831,7.27146785,139.68,139.65,0.7]
[1764698851831,7.27146785,139.68,139.65,7.86056559]
[1764698852026,7.27146785,139.68,139.59,0.1]
[1764698852027,7.27146785,139.66,139.59,0.1]
[1764698852243,7.27146785,139.63,139.6,0.7]
[1764698852433,7.27146785,139.62,139.6,0.7]
[1764698852638,7.27146785,139.63,139.6,0.7]
[1764698853237,7.27146785,139.61,139.6,0.7]
[1764698853557,7.27146785,139.62,139.59,0.8]
[1764698853858,7.27146785,139.62,139.59,0.76]
[1764698854359,7.27146785,139.62,139.59,7.92369408]
[1764698854839,7.27146785,139.63,139.6,0.66]
[1764698855039,7.16161053,139.64,139.6,0.66]
[1764698855040,7.27146785,139.64,139.6,0.66]
[1764698855654,7.27146785,139.63,139.59,0.1]
[1764698855865,7.27146785,139.62,139.59,0.76]
[1764698856031,7.27146785,139.62,139.59,7.92382746]
[1764698856428,7.27146785,139.62,139.59,7.26382746]
[1764698856739,14.43387396,139.62,139.59,7.92381515]
[1764698856950,7.27146785,139.62,139.59,7.92381515]
[1764698857147,7.27146785,139.61,139.6,16.308864]
[1764698857451,7.27146785,139.61,139.59,0.1]
[1764698857756,7.16199435,139.63,139.59,0.1]
[1764698857757,7.27146785,139.6,139.59,0.1]
[1764698858135,7.27146785,139.61,139.59,0.1]
[1764698859452,7.36280237,139.62,139.59,0.1]
[1764698859631,7.27146785,139.62,139.6,0.66]
[1764698859832,7.27146785,139.63,139.6,0.66]
[1764698860150,7.94,139.64,139.61,7.16281068]
[1764698860546,15.21146785,139.64,139.62,0.66]
[1764698860746,15.21146785,139.64,139.61,7.82281068]
[1764698862757,7.27146785,139.63,139.61,7.82281068]
[1764698863061,7.27146785,139.63,139.61,0.72]
[1764698863258,7.47146785,139.62,139.59,0.1]
[1764698863460,7.27146785,139.6,139.59,0.1]
[1764698864671,14.43479163,139.6,139.59,0.1]
[1764698864847,22.37479163,139.6,139.59,0.1]
[1764698865763,22.57479163,139.6,139.59,0.1]
[1764698868065,7.94,139.6,139.59,0.82]
[1764698868654,7.94,139.6,139.59,0.1]
[1764698869166,7.94,139.6,139.59,7.26383695]
[1764698869372,7.27146785,139.62,139.59,7.98383695]
[1764698870441,7.27146785,139.61,139.6,0.72]
[1764698871243,7.27146785,139.61,139.59,7.26383695]
[1764698871445,7.27146785,139.61,139.59,7.98383695]
[1764698872177,7.27146785,139.62,139.6,0.72]
[1764698872671,15.21146785,139.63,139.6,7.88328549]
[1764698873175,7.94,139.63,139.61,0.72]
[1764698873385,15.21146785,139.65,139.61,0.72]
[1764698873545,7.94,139.65,139.61,24.30033185]
[1764698873867,15.21146785,139.67,139.61,24.30033185]
[1764698874074,7.27146785,139.66,139.62,0.72]
[1764698874771,7.27146785,139.66,139.63,7.16178471]
[1764698875159,7.27146785,139.66,139.64,0.72]
[1764698877164,7.27146785,139.66,139.64,7.88126352]
[1764698877366,7.94,139.67,139.64,7.88126352]
[1764698877568,7.94,139.67,139.65,0.72]
[1764698878662,7.94,139.67,139.65,7.88032141]
[1764698878861,7.27146785,139.69,139.66,0.72]
[1764698879172,15.21146785,139.69,139.66,0.72]
[1764698880278,0.2,139.76,139.67,16.08141277]
[1764698880540,3.10194613,139.72,139.67,11.91189105]
[1764698880653,3.10194613,139.72,139.68,7.87922107]
[1764698880854,0.2,139.74,139.68,17.028864]
[1764698881055,3.10194613,139.71,139.69,0.72]
[1764698881380,3.10194613,139.72,139.69,0.72]
[1764698881982,3.10194613,139.71,139.69,0.72]
[1764698882477,3.10194613,139.71,139.68,16.308864]
[1764698882478,3.10194613,139.7,139.68,16.308864]
[1764698882660,3.10194613,139.69,139.68,16.308864]
[1764698883068,3.10194613,139.71,139.68,24.18798039]
[1764698883380,11.04194613,139.72,139.69,0.72]
[1764698883583,7.94,139.72,139.69,0.72]
[1764698883888,3.10194613,139.71,139.69,0.72]
[1764698884264,3.10194613,139.71,139.68,23.46798039]
[1764698884472,3.10194613,139.71,139.69,0.72]
[1764698884672,10.25975757,139.71,139.69,16.308864]
[1764698884877,7.94,139.72,139.69,16.308864]
[1764698884878,3.10194613,139.7,139.69,16.308864]
[1764698885193,3.10194613,139.7,139.68,0.72]
[1764698887824,3.10194613,139.7,139.68,7.87914685]
[1764698888122,3.10194613,139.7,139.68,0.72]
[1764698888323,3.10194613,139.69,139.66,24.18896049]
[1764698888521,3.10194613,139.69,139.67,0.72]
[1764698889892,3.10194613,139.68,139.63,11.91189105]
[1764698890193,3.10194613,139.68,139.65,0.72]
[1764698891990,3.10194613,139.68,139.66,7.16024631]
[1764698892487,3.10194613,139.68,139.66,7.83024631]
[1764698892688,7.94,139.69,139.67,0.67]
[1764698893092,11.04194613,139.69,139.67,0.67]
[1764698893799,7.94,139.69,139.67,0.67]
[1764698893980,11.04194613,139.72,139.68,7.15922107]
[1764698894371,11.04194613,139.72,139.69,0.67]
[1764698894777,7.94,139.72,139.7,3.10194613]
[1764698894993,7.94,139.75,139.71,16.308864]
[1764698895196,7.94,139.75,139.72,3.10194613]
[1764698895385,7.94,139.78,139.73,19.41081013]
[1764698895585,7.94,139.78,139.73,20.08081013]
[1764698895804,7.94,139.78,139.75,3.10194613]
[1764698895994,7.94,139.78,139.75,7.15563506]
[1764698896203,7.94,139.78,139.76,0.67]
[1764698897888,3.10194613,139.77,139.74,7.825767]
[1764698898103,3.10194613,139.77,139.75,0.67]
[1764698898486,3.10194613,139.76,139.73,16.978864]
[1764698898686,3.10194613,139.77,139.74,0.67]
[1764698899685,3.10194613,139.76,139.73,16.308864]
[1764698899892,3.10194613,139.75,139.71,7.82756211]
[1764698900211,3.10194613,139.75,139.71,7.15756211]
[1764698900515,3.10194613,139.74,139.72,16.978864]
[1764698900705,3.10194613,139.74,139.72,0.67]
[1764698900883,3.30194613,139.73,139.67,0.67]
[1764698901088,3.10194613,139.69,139.67,0.67]
[1764698901287,3.10194613,139.68,139.67,0.67]
[1764698901482,3.10194613,139.69,139.67,7.82973365]
[1764698902410,12.38120323,139.69,139.67,7.82973365]
[1764698903495,12.38120323,139.69,139.67,0.67]
[1764698903993,12.38120323,139.7,139.67,7.8296851]
[1764698904214,12.38120323,139.71,139.67,7.8296851]
[1764698904517,15.09737473,139.72,139.68,0.67]
[1764698904518,27.47857796,139.72,139.68,0.67]
[1764698905524,12.38120323,139.71,139.68,0.67]
[1764698906790,19.53889488,139.71,139.68,0.67]
[1764698906990,19.53889488,139.71,139.68,7.82913749]
[1764698907213,19.53889488,139.71,139.68,0.67]
[1764698907399,19.53889488,139.71,139.69,0.67]
[1764698907717,7.94,139.72,139.69,0.67]
[1764698907894,27.47845376,139.72,139.69,0.67]
[1764698908517,12.38120323,139.71,139.69,7.82865072]
[1764698908696,12.38120323,139.71,139.69,0.67]
[1764698910403,12.38120323,139.7,139.68,16.308864]
[1764698910823,12.38120323,139.69,139.68,16.308864]
[1764698911819,20.32120323,139.69,139.65,0.67]
[1764698912021,12.38120323,139.68,139.65,0.67]
[1764698912916,12.38120323,139.68,139.65,7.83043136]
[1764698913098,12.38120323,139.68,139.66,0.67]
[1764698914322,12.38120323,139.67,139.63,0.71]
[1764698914522,12.38120323,139.65,139.63,0.71]
[1764698915726,12.38120323,139.7,139.65,16.308864]
[1764698915922,7.94,139.69,139.66,12.38120323]
[1764698916123,20.32120323,139.71,139.66,13.09120323]
[1764698916423,20.32120323,139.71,139.67,17.018864]
[1764698916424,12.38120323,139.69,139.67,17.018864]
[1764698916813,12.38120323,139.7,139.67,17.018864]
[1764698917010,7.94,139.71,139.68,0.71]
[1764698917011,20.32120323,139.71,139.68,0.71]
[1764698918842,20.32120323,139.71,139.68,7.86895476]
[1764698919339,7.94,139.71,139.69,0.71]
[1764698919531,12.38120323,139.72,139.69,0.71]
[1764698920939,12.38120323,139.72,139.69,7.86838996]
[1764698921140,12.38120323,139.71,139.69,7.86838996]
[1764698921331,12.38120323,139.71,139.7,0.71]
[1764698922038,12.38120323,139.72,139.7,0.71]
[1764698922224,12.38120323,139.72,139.69,0.66]
[1764698922422,12.38120323,139.72,139.7,0.66]
[1764698922744,12.38120323,139.71,139.69,16.308864]
[1764698922913,12.38120323,139.71,139.69,16.968864]
[1764698924134,12.38120323,139.71,139.69,24.12754464]
[1764698924434,12.38120323,139.72,139.7,0.66]
[1764698925570,12.38120323,139.72,139.69,24.12754464]
[1764698926239,19.53839669,139.72,139.69,24.12754464]
[1764698926440,12.38120323,139.71,139.69,24.12754464]
[1764698926740,19.53839669,139.72,139.69,24.12754464]
[1764698926958,12.38120323,139.71,139.69,16.968864]
[1764698927115,12.38120323,139.7,139.67,0.66]
[1764698927460,20.32120323,139.7,139.67,16.968864]
[1764698927746,12.38120323,139.69,139.67,0.66]
[1764698928218,12.38120323,139.69,139.67,7.81970161]
[1764698929460,20.32120323,139.7,139.67,7.81970161]
[1764698930638,20.32120323,139.7,139.68,0.66]
[1764698931139,7.94,139.7,139.68,0.66]
[1764698931660,20.32120323,139.7,139.68,0.66]
[1764698932031,20.32120323,139.7,139.67,7.81970161]
[1764698934156,20.32120323,139.7,139.68,0.66]
[1764698934456,20.32120323,139.7,139.66,25.06086209]
[1764698934752,20.32120323,139.7,139.67,0.66]
[1764698935851,7.94,139.7,139.67,0.66]
[1764698936054,7.94,139.7,139.67,7.81931525]
[1764698936436,20.32120323,139.7,139.67,7.15931525]
[1764698936640,20.32120323,139.7,139.64,39.09357906]
[1764698936641,12.38120323,139.68,139.64,0.66]
[1764698936849,12.38120323,139.66,139.64,0.66]
[1764698937057,20.32120323,139.67,139.64,0.66]
[1764698937266,7.94,139.67,139.64,0.66]
[1764698937770,7.94,139.67,139.62,28.69006723]
[1764698937965,7.94,139.67,139.65,0.66]
[1764698938164,7.94,139.67,139.66,7.16024631]
[1764698938563,7.94,139.67,139.66,0.66]
[1764698938763,12.38120323,139.67,139.64,7.82103865]
[1764698939069,12.38120323,139.67,139.65,0.66]
[1764698940373,7.15976605,139.67,139.63,7.16159994]
[1764698940605,7.94,139.68,139.64,16.308864]
[1764698940753,12.38120323,139.66,139.64,16.308864]
[1764698941168,12.38120323,139.67,139.64,16.968864]